fUST/lending_fUST_20250929
["ID","MTS","AMOUNT","RATE_DAILY","PERIOD"]
[388384653,1759143031864,-349.26703644,0.00025205,2]
[388384658,1759143031905,-150.73296356,0.00025205,2]
[388384660,1759143031914,-6759.5526045,0.00025443,2]
[388384662,1759143031924,-213.7785813,0.00025512,2]
[388384664,1759143031933,-292.1789923,0.00025727,2]
[388384666,1759143031943,-1200.0,0.00025765,2]
[388384668,1759143031952,-355.8089605,0.00025767,2]
[388384670,1759143031961,-300.0,0.00025907,2]
[388384672,1759143031970,-289.0,0.00025907,2]
[388384674,1759143031979,-300.0,0.00025907,2]
[388384676,1759143031988,-1200.0,0.00025908,2]
[388384679,1759143031996,-266.91562373,0.00025909,2]
[388384683,1759143032006,-500.0,0.00026553,2]
[388384687,1759143032016,-500.0,0.00026553,2]
[388384690,1759143032025,-278.07821858,0.00026553,2]
[388384693,1759143032035,-46252.57339126,0.00026554,2]
[388384740,1759143037975,-1933.91747277,0.00026554,2]
[388384741,1759143037985,-3115.94240168,0.00026555,2]
[388384742,1759143037996,-169.15,0.0002664,10]
[388384743,1759143038007,-187.50342861,0.0002665,2]
[388384744,1759143038018,-500.0,0.0002665,2]
[388384745,1759143038027,-500.0,0.0002665,2]
[388384746,1759143038036,-500.0,0.0002665,2]
[388384747,1759143038046,-500.0,0.0002665,2]
[388384748,1759143038055,-500.0,0.0002665,2]
[388384749,1759143038066,-500.0,0.0002665,2]
[388384750,1759143038075,-500.10262063,0.0002665,2]
[388384751,1759143038084,-500.0,0.0002665,2]
[388384752,1759143038094,-500.0,0.0002665,2]
[388384753,1759143038103,-500.0,0.0002665,2]
[388384754,1759143038112,-500.0,0.0002665,2]
[388384755,1759143038122,-151.0,0.0002665,7]
[388384756,1759143038132,-151.0,0.0002665,7]
[388384757,1759143038142,-151.0,0.0002665,7]
[388384758,1759143038151,-151.0,0.0002665,7]
[388384759,1759143038160,-151.0,0.0002665,7]
[388384760,1759143038170,-151.0,0.0002665,7]
[388384761,1759143038180,-151.0,0.0002665,7]
[388384762,1759143038189,-151.0,0.0002665,7]
[388384763,1759143038199,-151.0,0.0002665,7]
[388384764,1759143038208,-26437.17555779,0.00026651,2]
[388384765,1759143038220,-129949.34867221,0.00026651,2]
[388384766,1759143038229,-250.0,0.00026654,2]
[388384767,1759143038238,-250.0,0.00026654,2]
[388384768,1759143038248,-250.0,0.00026654,2]
[388384769,1759143038257,-250.0,0.00026654,2]
[388384770,1759143038266,-31277.3048461,0.0002666,2]
[388384771,1759143038275,-62554.6096921,0.0002666,2]
[388384772,1759143038284,-151.0,0.00026661,7]
[388384773,1759143038294,-151.0,0.00026661,7]
[388384774,1759143038303,-151.0,0.00026661,7]
[388384775,1759143038313,-269.478686,0.00026661,7]
[388384776,1759143038324,-151.0,0.00026661,7]
[388384777,1759143038334,-151.0,0.00026661,7]
[388384778,1759143038343,-151.0,0.00026661,7]
[388384779,1759143038352,-151.0,0.00026661,7]
[388384780,1759143038362,-151.0,0.00026661,7]
[388384781,1759143038371,-151.0,0.00026661,7]
[388384782,1759143038381,-151.0,0.00026661,7]
[388384783,1759143038391,-899.780891,0.00026661,7]
[388384784,1759143038400,-151.0,0.00026661,7]
[388384785,1759143038409,-899.780891,0.00026661,7]
[388384786,1759143038418,-151.0,0.00026661,7]
[388384787,1759143038427,-151.0,0.00026661,7]
[388384788,1759143038437,-899.780891,0.00026661,7]
[388384789,1759143038446,-151.0,0.00026661,7]
[388384790,1759143038455,-239.167807,0.0002667,7]
[388384791,1759143038465,-239.167807,0.0002667,7]
[388384792,1759143038474,-239.167807,0.0002667,7]
[388384793,1759143038483,-239.167807,0.0002667,7]
[388384794,1759143038493,-151.0,0.0002667,7]
[388384795,1759143038502,-151.0,0.0002667,7]
[388384796,1759143038512,-151.0,0.0002667,7]
[388384797,1759143038525,-151.0,0.0002667,7]
[388384798,1759143038535,-153.200272,0.0002667,7]
[388384799,1759143038544,-151.0,0.0002667,7]
[388384800,1759143038555,-151.0,0.0002667,7]
[388384801,1759143038564,-279.456317,0.0002667,7]
[388384802,1759143038574,-151.0,0.0002667,7]
[388384803,1759143038583,-151.0,0.0002667,7]
[388384804,1759143038593,-151.0,0.0002667,7]
[388384805,1759143038604,-151.0,0.0002667,7]
[388384806,1759143038613,-151.0,0.0002667,7]
[388384807,1759143038623,-151.0,0.0002667,7]
[388384808,1759143038632,-244.43081,0.0002667,7]
[388384809,1759143038641,-442.331859,0.0002667,7]
[388384810,1759143038651,-442.331859,0.0002667,7]
[388384811,1759143038660,-442.331859,0.0002667,7]
[388384812,1759143038859,-151.0,0.0002667,7]
[388384813,1759143038885,-442.331859,0.0002667,7]
[388384814,1759143038895,-151.926774,0.0002667,7]
[388384815,1759143038905,-151.0,0.0002667,7]
[388384816,1759143038915,-151.0,0.0002667,7]
[388384817,1759143038924,-159.711407,0.0002667,7]
[388384818,1759143038934,-159.398646,0.0002667,7]
[388384819,1759143038943,-151.0,0.0002667,7]
[388384820,1759143038952,-151.0,0.0002667,7]
[388384821,1759143038962,-151.0,0.0002667,7]
[388384822,1759143038972,-151.0,0.0002667,7]
[388384823,1759143038981,-151.0,0.0002667,7]
[388384824,1759143038991,-151.0,0.0002667,7]
[388384825,1759143039000,-151.0,0.0002667,7]
[388384826,1759143039011,-151.0,0.0002667,7]
[388384827,1759143039022,-347.816045,0.0002667,7]
[388384828,1759143039032,-388.599205,0.0002667,7]
[388384829,1759143039043,-347.816045,0.0002667,7]
[388384830,1759143039053,-388.599205,0.0002667,7]
[388384831,1759143039062,-347.816045,0.0002667,7]
[388384832,1759143039072,-151.0,0.0002667,7]
[388384833,1759143039082,-388.599205,0.0002667,7]
[388384834,1759143039093,-347.816045,0.0002667,7]
[388384835,1759143039103,-388.599205,0.0002667,7]
[388384836,1759143039112,-151.0,0.0002667,7]
[388384837,1759143039121,-151.9101,0.0002667,7]
[388384838,1759143039131,-151.0,0.0002667,7]
[388384839,1759143039140,-151.0,0.0002667,7]
[388384840,1759143039151,-151.0,0.0002667,7]
[388384841,1759143039160,-151.0,0.0002667,7]
[388384842,1759143039176,-151.0,0.0002667,7]
[388384843,1759143039187,-152.992248,0.0002667,7]
[388384844,1759143039196,-151.0,0.0002667,7]
[388384845,1759143039206,-151.0,0.0002667,7]
[388384846,1759143039215,-153.514574,0.0002667,7]
[388384847,1759143039228,-756.0,0.0002667,7]
[388384848,1759143039237,-756.0,0.0002667,7]
[388384849,1759143039247,-151.0,0.0002667,7]
[388384850,1759143039257,-226.907461,0.0002667,7]
[388384851,1759143039267,-151.0,0.0002667,7]
[388384852,1759143039278,-151.0,0.0002667,7]
[388384853,1759143039288,-226.907461,0.0002667,7]
[388384854,1759143039298,-151.0,0.0002667,7]
[388384855,1759143039308,-226.907461,0.0002667,7]
[388384856,1759143039318,-226.907461,0.0002667,7]
[388384857,1759143039328,-151.0,0.0002667,7]
[388384858,1759143039338,-151.0,0.0002667,7]
[388384859,1759143039348,-151.0,0.0002667,7]
[388384860,1759143039358,-151.0,0.0002667,7]
[388384861,1759143039367,-151.0,0.0002667,7]
[388384862,1759143039377,-151.0,0.0002667,7]
[388384863,1759143039387,-151.0,0.0002667,7]
[388384864,1759143039397,-151.0,0.0002667,7]
[388384865,1759143039407,-288.866744,0.0002667,7]
[388384866,1759143039417,-151.0,0.0002667,7]
[388384867,1759143039426,-201.881643,0.0002667,7]
[388384868,1759143039436,-151.0,0.0002667,7]
[388384869,1759143039445,-182.062787,0.0002667,7]
[388384870,1759143039455,-151.0,0.0002667,7]
[388384871,1759143039465,-151.0,0.0002667,7]
[388384872,1759143039475,-198.0,0.0002667,7]
[388384873,1759143039485,-151.0,0.0002667,7]
[388384874,1759143039494,-151.0,0.0002667,7]
[388384875,1759143039504,-151.0,0.0002667,7]
[388384876,1759143039514,-198.0,0.0002667,7]
[388384877,1759143039527,-198.0,0.0002667,7]
[388384878,1759143039536,-500.0,0.0002667,7]
[388384879,1759143039546,-151.0,0.0002667,7]
[388384881,1759143039555,-151.0,0.0002667,7]
[388384883,1759143039566,-151.0,0.0002667,7]
[388384885,1759143039577,-151.0,0.0002667,2]
[388384887,1759143039586,-151.0,0.0002667,2]
[388384889,1759143039596,-151.0,0.0002667,2]
[388384891,1759143039605,-244.403008,0.0002667,7]
[388384892,1759143039615,-151.0,0.0002667,7]
[388384893,1759143039624,-151.0,0.0002667,7]
[388384894,1759143039633,-151.0,0.0002667,7]
[388384895,1759143039642,-500.0,0.0002667,7]
[388384896,1759143039651,-500.0,0.0002667,7]
[388384897,1759143039661,-151.0,0.0002667,7]
[388384898,1759143039670,-151.0,0.0002667,7]
[388384899,1759143039679,-151.0,0.0002667,7]
[388384900,1759143039688,-151.0,0.0002667,7]
[388384901,1759143039698,-152.22236,0.0002667,7]
[388384902,1759143039707,-295.565471,0.0002667,7]
[388384903,1759143039716,-151.0,0.0002667,7]
[388384904,1759143039726,-151.0,0.0002667,7]
[388384905,1759143039734,-899.780891,0.0002667,7]
[388384906,1759143039742,-151.0,0.0002667,7]
[388384907,1759143039751,-899.780891,0.0002667,7]
[388384908,1759143039759,-151.0,0.0002667,7]
[388384909,1759143039768,-151.0,0.0002667,7]
[388384910,1759143039778,-899.780891,0.0002667,7]
[388384911,1759143039787,-370000.0,0.0002667,2]
[388384912,1759143039796,-500.0,0.00026673,2]
[388384913,1759143039806,-500.0,0.00026673,2]
[388384914,1759143039817,-500.0,0.00026673,2]
[388384915,1759143039827,-500.0,0.00026673,2]
[388384916,1759143039837,-508.7699855,0.00026673,2]
[388384917,1759143039848,-500.0,0.00026673,2]
[388384918,1759143039858,-500.0,0.00026673,2]
[388384920,1759143039868,-500.0,0.00026673,2]
[388384921,1759143039877,-500.0,0.00026673,2]
[388384922,1759143039886,-500.0,0.00026673,2]
[388384923,1759143039896,-162.5381576,0.00026673,2]
[388384924,1759143039905,-500.0,0.00026673,2]
[388384926,1759143039914,-153.06758,0.00026764,7]
[388384927,1759143039924,-239.167807,0.00026764,7]
[388384928,1759143039933,-239.167807,0.00026764,7]
[388384929,1759143039943,-239.167807,0.00026764,7]
[388384930,1759143039952,-239.167807,0.00026764,7]
[388384931,1759143039961,-151.0,0.00026764,7]
[388384932,1759143039971,-151.0,0.00026764,7]
[388384933,1759143039980,-151.0,0.00026764,7]
[388384934,1759143039990,-151.0,0.00026764,7]
[388384935,1759143039999,-151.0,0.00026764,7]
[388384936,1759143040010,-151.0,0.00026764,7]
[388384937,1759143040021,-151.0,0.00026764,7]
[388384938,1759143040031,-151.0,0.00026764,7]
[388384939,1759143040040,-151.0,0.00026764,7]
[388384940,1759143040050,-151.0,0.00026764,7]
[388384941,1759143040059,-151.0,0.00026764,7]
[388384942,1759143040068,-442.331859,0.00026764,7]
[388384943,1759143040078,-442.331859,0.00026764,7]
[388384944,1759143040087,-442.331859,0.00026764,7]
[388384945,1759143040097,-442.331859,0.00026764,7]
[388384946,1759143040106,-177.530435,0.00026764,7]
[388384947,1759143040115,-151.0,0.00026764,7]
[388384948,1759143040124,-151.0,0.00026764,7]
[388384949,1759143040133,-151.0,0.00026764,7]
[388384950,1759143040142,-151.0,0.00026764,7]
[388384951,1759143040153,-151.0,0.00026764,7]
[388384953,1759143040162,-151.0,0.00026764,7]
[388384955,1759143040171,-151.0,0.00026764,7]
[388384957,1759143040181,-347.816045,0.00026764,7]
[388384959,1759143040190,-388.599205,0.00026764,7]
[388384960,1759143040199,-347.816045,0.00026764,7]
[388384961,1759143040209,-388.599205,0.00026764,7]
[388384962,1759143040218,-347.816045,0.00026764,7]
[388384963,1759143040227,-151.0,0.00026764,7]
[388384964,1759143040236,-388.599205,0.00026764,7]
[388384965,1759143040246,-347.816045,0.00026764,7]
[388384966,1759143040257,-388.599205,0.00026764,7]
[388384967,1759143040267,-233.87608454,0.0002679,7]
[388384968,1759143040279,-300.0,0.000268,2]
[388384969,1759143040289,-300.0,0.000268,2]
[388384970,1759143040299,-300.0,0.000268,2]
[388384971,1759143040310,-300.0,0.000268,2]
[388384972,1759143040320,-300.0,0.000268,2]
[388384973,1759143040330,-300.0,0.000268,2]
[388384974,1759143040340,-154.712346,0.00026828,10]
[388384975,1759143040350,-219.37,0.00026842,2]
[388384976,1759143040360,-1014.67106516,0.00026857,2]
[388384977,1759143040369,-6535.8607226,0.0002689,2]
[388384978,1759143040379,-2220.8070702,0.0002689,2]
[388384979,1759143040391,-154.712346,0.00026918,10]
[388384980,1759143040406,-756.0,0.00026944,7]
[388384981,1759143040422,-756.0,0.00026944,7]
[388384982,1759143040433,-151.0,0.00026944,7]
[388384983,1759143040447,-152.98416301,0.00026944,7]
[388384984,1759143040461,-151.0,0.00026944,7]
[388384985,1759143040474,-152.79004855,0.00026944,7]
[388384986,1759143040488,-153.96431254,0.00026944,7]
[388384987,1759143040503,-151.0,0.00026944,7]
[388384988,1759143040518,-500.0,0.00026944,7]
[388384989,1759143040533,-247.49128938,0.00026944,7]
[388384990,1759143040546,-151.0,0.00026944,7]
[388384991,1759143040559,-151.0,0.00026944,2]
[388384992,1759143040573,-151.0,0.00026944,2]
[388384993,1759143040586,-500.0,0.00026947,2]
[388384994,1759143040603,-154.712346,0.0002695,23]
[388384995,1759143040615,-3115.94240167,0.00027063,2]
[388384996,1759143040625,-601.74737169,0.0002709,2]
[388384997,1759143040638,-170.64745108,0.00027096,30]
[388384998,1759143040650,-168.0,0.0002719,2]
[388384999,1759143040663,-979.0,0.00027196,2]
[388385000,1759143040676,-2156.0,0.00027196,2]
[388385001,1759143040689,-629.0,0.00027196,2]
[388385002,1759143040703,-756.0,0.00027218,7]
[388385003,1759143040718,-756.0,0.00027218,7]
[388385004,1759143040730,-151.0,0.00027218,7]
[388385005,1759143040741,-198.0,0.00027218,7]
[388385006,1759143040751,-153.23478052,0.00027218,7]
[388385007,1759143040763,-198.0,0.00027218,7]
[388385008,1759143040779,-151.0,0.00027218,2]
[388385009,1759143040792,-151.0,0.00027218,2]
[388385010,1759143040804,-1000.0,0.00027221,2]
[388385011,1759143040816,-1000.0,0.00027221,2]
[388385012,1759143040828,-1000.0,0.00027221,2]
[388385013,1759143040841,-1000.0,0.00027221,2]
[388385014,1759143040853,-1000.0,0.00027221,2]
[388385015,1759143040864,-1000.0,0.00027221,2]
[388385016,1759143040876,-1000.0,0.00027221,2]
[388385017,1759143040888,-1000.0,0.00027221,2]
[388385018,1759143040899,-1000.0,0.00027221,2]
[388385019,1759143040912,-511.18179007,0.00027221,2]
[388385020,1759143040924,-283.862,0.00027224,15]
[388385021,1759143040936,-500.0,0.0002726,7]
[388385022,1759143040950,-151.0,0.00027273,7]
[388385023,1759143040961,-151.0,0.00027273,7]
[388385024,1759143040973,-151.0,0.00027273,7]
[388385025,1759143040985,-160.020067,0.00027273,7]
[388385026,1759143040997,-1000.0,0.00027297,2]
[388385027,1759143041010,-151.0,0.000273,12]
[388385028,1759143041022,-164.88740301,0.00027321,2]
[388385029,1759143041033,-500.0,0.00027321,2]
[388385030,1759143041044,-151.94907807,0.00027321,2]
[388385031,1759143041056,-154.712346,0.00027363,5]
[388385032,1759143041068,-517.07436645,0.00027373,2]
[388385033,1759143041080,-500.0,0.00027373,2]
[388385034,1759143041091,-500.0,0.00027373,2]
[388385035,1759143041103,-500.0,0.00027373,2]
[388385036,1759143041115,-501.16637192,0.00027373,2]
[388385037,1759143041127,-500.0,0.00027373,2]
[388385038,1759143041138,-500.0,0.00027373,2]
[388385039,1759143041150,-620.66593093,0.00027373,2]
[388385040,1759143041162,-561.17950999,0.00027373,2]
[388385041,1759143041173,-500.0,0.00027373,2]
[388385042,1759143041184,-500.0,0.00027373,2]
[388385043,1759143041196,-400.0,0.00027373,2]
[388385044,1759143041207,-500.0,0.00027373,2]
[388385045,1759143041219,-500.0,0.00027373,2]
[388385046,1759143041231,-500.0,0.00027373,2]
[388385047,1759143041242,-500.0,0.00027373,2]
[388385048,1759143041254,-500.0,0.00027373,2]
[388385049,1759143041266,-500.0,0.00027373,2]
[388385050,1759143041278,-500.0,0.00027373,2]
[388385051,1759143041290,-500.0,0.00027373,2]
[388385052,1759143041301,-500.0,0.00027373,2]
[388385053,1759143041313,-500.0,0.00027373,2]
[388385054,1759143041326,-500.0,0.00027373,2]
[388385055,1759143041338,-504.8061325,0.00027373,2]
[388385056,1759143041350,-500.0,0.00027373,2]
[388385057,1759143041361,-500.0,0.00027373,2]
[388385058,1759143041373,-500.0,0.00027373,2]
[388385059,1759143041384,-500.0,0.00027373,2]
[388385060,1759143041395,-500.0,0.00027373,2]
[388385061,1759143041406,-500.0,0.00027373,2]
[388385062,1759143041418,-500.0,0.00027373,2]
[388385063,1759143041429,-412.45660149,0.00027373,2]
[388385064,1759143041441,-500.0,0.00027373,2]
[388385065,1759143041452,-500.0,0.00027373,2]
[388385066,1759143041463,-500.0,0.00027373,2]
[388385067,1759143041475,-500.0,0.00027373,2]
[388385068,1759143041487,-500.0,0.00027373,2]
[388385069,1759143041498,-500.0,0.00027373,2]
[388385070,1759143041509,-239.167807,0.00027373,7]
[388385071,1759143041523,-239.167807,0.00027373,7]
[388385072,1759143041535,-239.167807,0.00027373,7]
[388385073,1759143041545,-239.167807,0.00027373,7]
[388385074,1759143041557,-151.0,0.00027373,7]
[388385075,1759143041568,-151.0,0.00027373,7]
[388385076,1759143041581,-151.0,0.00027373,7]
[388385077,1759143041592,-157.942407,0.00027373,7]
[388385078,1759143041604,-151.0,0.00027373,7]
[388385079,1759143041616,-151.0,0.00027373,7]
[388385080,1759143041628,-151.0,0.00027373,7]
[388385081,1759143041639,-151.0,0.00027373,7]
[388385082,1759143041651,-151.0,0.00027373,7]
[388385083,1759143041663,-151.0,0.00027373,7]
[388385084,1759143041675,-151.0,0.00027373,7]
[388385085,1759143041686,-442.331859,0.00027373,7]
[388385086,1759143041698,-442.331859,0.00027373,7]
[388385087,1759143041709,-442.331859,0.00027373,7]
[388385088,1759143041721,-442.331859,0.00027373,7]
[388385089,1759143041734,-151.0,0.00027373,7]
[388385090,1759143041746,-151.0,0.00027373,7]
[388385091,1759143041757,-155.0371,0.00027373,7]
[388385092,1759143041769,-151.0,0.00027373,7]
[388385093,1759143041781,-151.0,0.00027373,7]
[388385094,1759143041793,-275.339732,0.00027373,7]
[388385095,1759143041805,-347.816045,0.00027373,7]
[388385096,1759143041816,-388.599205,0.00027373,7]
[388385097,1759143041828,-347.816045,0.00027373,7]
[388385098,1759143041840,-388.599205,0.00027373,7]
[388385099,1759143041851,-347.816045,0.00027373,7]
[388385100,1759143041863,-388.599205,0.00027373,7]
[388385101,1759143041875,-347.816045,0.00027373,7]
[388385102,1759143041887,-388.599205,0.00027373,7]
[388385103,1759143041900,-151.0,0.00027373,7]
[388385104,1759143041912,-151.0,0.00027373,7]
[388385105,1759143041923,-151.0,0.00027373,7]
[388385106,1759143041935,-151.0,0.00027373,7]
[388385107,1759143041947,-151.0,0.00027373,7]
[388385108,1759143041959,-262.915931,0.00027373,7]
[388385109,1759143041970,-151.0,0.00027373,7]
[388385110,1759143041982,-226.907461,0.00027373,7]
[388385111,1759143041994,-226.907461,0.00027373,7]
[388385112,1759143042007,-226.907461,0.00027373,7]
[388385113,1759143042018,-226.907461,0.00027373,7]
[388385114,1759143042031,-151.0,0.00027373,7]
[388385115,1759143042042,-151.0,0.00027373,7]
[388385116,1759143042055,-151.0,0.00027373,7]
[388385117,1759143042066,-151.0,0.00027373,7]
[388385118,1759143042077,-151.0,0.00027373,7]
[388385119,1759143042087,-151.0,0.00027373,7]
[388385120,1759143042097,-151.0,0.00027373,7]
[388385121,1759143042106,-151.0,0.00027373,7]
[388385122,1759143042115,-151.0,0.00027373,7]
[388385123,1759143042125,-151.0,0.00027373,7]
[388385124,1759143042134,-151.0,0.00027373,7]
[388385125,1759143042144,-151.0,0.00027373,7]
[388385126,1759143042153,-151.0,0.00027373,7]
[388385127,1759143042162,-151.0,0.00027373,7]
[388385128,1759143042171,-151.0,0.00027373,7]
[388385129,1759143042437,-151.0,0.00027373,7]
[388385132,1759143042461,-151.0,0.00027373,7]
[388385135,1759143042479,-151.0,0.00027373,7]
[388385137,1759143042489,-151.0,0.00027373,7]
[388385139,1759143042498,-899.780891,0.00027373,7]
[388385141,1759143042507,-151.0,0.00027373,7]
[388385143,1759143042518,-899.780891,0.00027373,7]
[388385145,1759143042530,-151.0,0.00027373,7]
[388385148,1759143042539,-899.780891,0.00027373,7]
[388385151,1759143042549,-929.32432589,0.0002739,5]
[388385154,1759143042559,-500.0,0.00027393,2]
[388385156,1759143042569,-2247.83517171,0.00027396,7]
[388385158,1759143042578,-155.0,0.00027396,2]
[388385160,1759143042587,-200.0,0.00027396,2]
[388385163,1759143042598,-151.0,0.00027396,7]
[388385166,1759143042607,-151.0,0.00027396,7]
[388385167,1759143042617,-153.293697,0.00027396,7]
[388385168,1759143042628,-200.0,0.00027396,2]
[388385169,1759143042637,-500.0,0.00027397,7]
[388385170,1759143042645,-484.25,0.00027397,7]
[388385171,1759143042654,-480.0,0.00027397,7]
[388385172,1759143042663,-532.64,0.00027397,7]
[388385173,1759143042672,-813.77,0.00027397,7]
[388385174,1759143042681,-480.0,0.00027397,7]
[388385175,1759143042691,-480.0,0.00027397,7]
[388385176,1759143042700,-520.0,0.00027397,3]
[388385177,1759143042709,-480.0,0.00027397,7]
[388385178,1759143042719,-480.0,0.00027397,7]
[388385179,1759143042728,-200.9072093,0.00027397,7]
[388385180,1759143042737,-480.0,0.00027397,7]
[388385181,1759143042746,-480.0,0.00027397,7]
[388385182,1759143042756,-583.41487089,0.00027397,7]
[388385183,1759143042765,-501.82,0.00027397,7]
[388385184,1759143042775,-480.0,0.00027397,7]
[388385185,1759143042784,-480.0,0.00027397,7]
[388385186,1759143042794,-530.77,0.00027397,7]
[388385187,1759143042803,-480.0,0.00027397,7]
[388385188,1759143042814,-480.0,0.00027397,7]
[388385189,1759143042823,-480.0,0.00027397,7]
[388385190,1759143042832,-233.87608454,0.00027397,7]
[388385191,1759143042842,-480.0,0.00027397,7]
[388385192,1759143042852,-766.62,0.00027397,7]
[388385193,1759143042861,-480.0,0.00027397,7]
[388385194,1759143042871,-690.33,0.00027397,7]
[388385195,1759143042880,-559.49,0.00027397,7]
[388385196,1759143042890,-500.0,0.00027397,7]
[388385197,1759143042899,-480.0,0.00027397,7]
[388385198,1759143042908,-219.78802183,0.00027397,7]
[388385199,1759143042917,-480.0,0.00027397,7]
[388385200,1759143042927,-480.0,0.00027397,7]
[388385201,1759143042936,-496.47813687,0.00027397,7]
[388385202,1759143042945,-480.0,0.00027397,7]
[388385203,1759143042954,-480.0,0.00027397,7]
[388385204,1759143042963,-482.769942,0.00027397,7]
[388385205,1759143042972,-598.82,0.00027397,7]
[388385206,1759143042981,-480.0,0.00027397,7]
[388385207,1759143042991,-480.0,0.00027397,7]
[388385208,1759143042999,-480.0,0.00027397,7]
[388385209,1759143043009,-480.0,0.00027397,7]
[388385210,1759143043019,-480.0,0.00027397,7]
[388385211,1759143043029,-534.61,0.00027397,7]
[388385212,1759143043039,-480.0,0.00027397,7]
[388385213,1759143043049,-480.0,0.00027397,7]
[388385214,1759143043061,-480.0,0.00027397,7]
[388385215,1759143043070,-480.0,0.00027397,7]
[388385216,1759143043079,-749.03,0.00027397,7]
[388385217,1759143043088,-480.0,0.00027397,7]
[388385219,1759143043097,-481.50735612,0.00027397,7]
[388385220,1759143043107,-480.0,0.00027397,7]
[388385221,1759143043117,-703.36,0.00027397,7]
[388385223,1759143043126,-480.0,0.00027397,7]
[388385224,1759143043135,-540.53,0.00027397,7]
[388385225,1759143043144,-480.0,0.00027397,7]
[388385226,1759143043153,-481.01703753,0.00027397,7]
[388385227,1759143043162,-480.0,0.00027397,7]
[388385228,1759143043171,-480.0,0.00027397,7]
[388385230,1759143043179,-453.39304695,0.00027397,7]
[388385232,1759143043188,-480.0,0.00027397,7]
[388385233,1759143043196,-480.0,0.00027397,7]
[388385234,1759143043205,-948.68,0.00027397,7]
[388385235,1759143043214,-1098.47,0.00027397,7]
[388385236,1759143043223,-151.0,0.00027397,7]
[388385238,1759143043232,-536.8,0.00027397,7]
[388385240,1759143043241,-548.01,0.00027397,7]
[388385241,1759143043250,-480.0,0.00027397,7]
[388385242,1759143043259,-480.0,0.00027397,7]
[388385243,1759143043268,-1145.91,0.00027397,7]
[388385244,1759143043278,-177.83949429,0.00027397,7]
[388385245,1759143043287,-480.0,0.00027397,7]
[388385246,1759143043296,-727.37,0.00027397,7]
[388385247,1759143043305,-480.0,0.00027397,7]
[388385248,1759143043316,-482.91406733,0.00027397,7]
[388385249,1759143043325,-480.0,0.00027397,7]
[388385250,1759143043335,-480.0,0.00027397,7]
[388385251,1759143043345,-639.73,0.00027397,7]
[388385252,1759143043354,-480.0,0.00027397,7]
[388385253,1759143043363,-480.0,0.00027397,7]
[388385254,1759143043373,-480.0,0.00027397,7]
[388385255,1759143043382,-480.0,0.00027397,7]
[388385256,1759143043391,-480.0,0.00027397,7]
[388385257,1759143043401,-480.0,0.00027397,7]
[388385258,1759143043410,-1367.96,0.00027397,7]
[388385259,1759143043419,-480.0,0.00027397,7]
[388385260,1759143043428,-480.0,0.00027397,7]
[388385261,1759143043437,-480.0,0.00027397,7]
[388385262,1759143043446,-577.85,0.00027397,7]
[388385263,1759143043456,-480.0,0.00027397,7]